[Event "Titled Tuesday Blitz March 29 Late 2022"]
[White "Petrovic, Aleksa"]
[Black "Quintiliano Pinto, Renato R."]
[WhiteFideId "967629"]
[BlackFideId "2117568"]
[WhiteElo "2245"]
[BlackElo "2439"]
[Result "0-1"]
[Round "08"]
[TimeControl "180+1"]
[Date "2022.03.29"]
[WhiteClock "0:00:06"]
[BlackClock "0:00:20"]

1. d4 {[%clk 0:03:00]}  Nf6 {[%clk 0:02:59]} 2. c4 {[%clk 0:03:00]}  e6 {[%clk 0:03:00]} 3. Nc3 {[%clk 0:02:58]}  Bb4 {[%clk 0:03:00]} 4. Qc2 {[%clk 0:02:58]}  c5 {[%clk 0:02:59]} 5. dxc5 {[%clk 0:02:58]}  O-O {[%clk 0:03:00]} 6. a3 {[%clk 0:02:54]}  Bxc5 {[%clk 0:03:00]} 7. Nf3 {[%clk 0:02:54]}  Qb6 {[%clk 0:02:59]} 8. e3 {[%clk 0:02:50]}  Be7 {[%clk 0:02:58]} 9. Bd3 {[%clk 0:02:45]}  a6 {[%clk 0:02:57]} 10. b4 {[%clk 0:02:23]}  d6 {[%clk 0:02:56]} 11. Bb2 {[%clk 0:02:22]}  Nbd7 {[%clk 0:02:55]} 12. Rb1 {[%clk 0:01:56]}  Qc7 {[%clk 0:02:51]} 13. Ne4 {[%clk 0:01:53]}  h6 {[%clk 0:02:50]} 14. Nxf6+ {[%clk 0:01:46]}  Nxf6 {[%clk 0:02:51]} 15. O-O {[%clk 0:01:39]}  b6 {[%clk 0:02:50]} 16. e4 {[%clk 0:01:33]}  Bb7 {[%clk 0:02:50]} 17. e5 {[%clk 0:01:30]}  Ng4 {[%clk 0:02:47]} 18. Bh7+ {[%clk 0:01:20]}  Kh8 {[%clk 0:02:43]} 19. Be4 {[%clk 0:01:21]}  Bxe4 {[%clk 0:02:17]} 20. Qxe4 {[%clk 0:01:20]}  Nxe5 {[%clk 0:02:17]} 21. Bxe5 {[%clk 0:01:12]}  dxe5 {[%clk 0:02:18]} 22. Nxe5 {[%clk 0:01:11]}  Bd6 {[%clk 0:02:12]} 23. Nf3 {[%clk 0:00:59]}  a5 {[%clk 0:02:10]} 24. Rfc1 {[%clk 0:00:52]}  axb4 {[%clk 0:02:09]} 25. c5 {[%clk 0:00:42]}  bxc5 {[%clk 0:02:07]} 26. axb4 {[%clk 0:00:43]}  Rab8 {[%clk 0:01:55]} 27. bxc5 {[%clk 0:00:39]}  Rxb1 {[%clk 0:01:53]} 28. Qxb1 {[%clk 0:00:40]}  Bxc5 {[%clk 0:01:53]} 29. Qc2 {[%clk 0:00:34]}  Rd8 {[%clk 0:01:47]} 30. g3 {[%clk 0:00:25]}  Rd5 {[%clk 0:01:44]} 31. Ne1 {[%clk 0:00:19]}  Qd7 {[%clk 0:01:35]} 32. Nd3 {[%clk 0:00:16]}  Rxd3 {[%clk 0:01:32]} 33. Qxc5 {[%clk 0:00:16]}  Kh7 {[%clk 0:01:20]} 34. Qc2 {[%clk 0:00:16]}  g6 {[%clk 0:01:19]} 35. Qc6 {[%clk 0:00:12]}  Qd4 {[%clk 0:01:14]} 36. Qb7 {[%clk 0:00:10]}  Kg7 {[%clk 0:01:12]} 37. Rc7 {[%clk 0:00:10]}  Qf6 {[%clk 0:01:06]} 38. Rc4 {[%clk 0:00:07]}  Rf3 {[%clk 0:01:01]} 39. Rc2 {[%clk 0:00:05]}  h5 {[%clk 0:01:00]} 40. Kg2 {[%clk 0:00:05]}  h4 {[%clk 0:00:57]} 41. Qb2 {[%clk 0:00:04]}  hxg3 {[%clk 0:00:54]} 42. Qxf6+ {[%clk 0:00:04]}  Rxf6 {[%clk 0:00:55]} 43. hxg3 {[%clk 0:00:03]}  g5 {[%clk 0:00:55]} 44. Rc5 {[%clk 0:00:03]}  Kg6 {[%clk 0:00:55]} 45. Ra5 {[%clk 0:00:04]}  g4 {[%clk 0:00:55]} 46. Ra8 {[%clk 0:00:05]}  Kg5 {[%clk 0:00:51]} 47. Rg8+ {[%clk 0:00:05]}  Rg6 {[%clk 0:00:52]} 48. Rf8 {[%clk 0:00:05]}  Kf6 {[%clk 0:00:51]} 49. Ra8 {[%clk 0:00:04]}  Kf5 {[%clk 0:00:52]} 50. Ra5+ {[%clk 0:00:04]}  e5 {[%clk 0:00:52]} 51. Ra4 {[%clk 0:00:05]}  Rc6 {[%clk 0:00:50]} 52. Ra7 {[%clk 0:00:04]}  f6 {[%clk 0:00:50]} 53. Rh7 {[%clk 0:00:04]}  Rc2 {[%clk 0:00:49]} 54. Rh5+ {[%clk 0:00:04]}  Kg6 {[%clk 0:00:48]} 55. Rh4 {[%clk 0:00:03]}  Kg5 {[%clk 0:00:47]} 56. Rh8 {[%clk 0:00:04]}  Rd2 {[%clk 0:00:44]} 57. Rg8+ {[%clk 0:00:04]}  Kf5 {[%clk 0:00:44]} 58. Ra8 {[%clk 0:00:04]}  Ke4 {[%clk 0:00:42]} 59. Ra4+ {[%clk 0:00:04]}  Rd4 {[%clk 0:00:42]} 60. Ra6 {[%clk 0:00:03]}  f5 {[%clk 0:00:42]} 61. Ra3 {[%clk 0:00:03]}  Rc4 {[%clk 0:00:38]} 62. Re3+ {[%clk 0:00:02]}  Kd5 {[%clk 0:00:37]} 63. Re1 {[%clk 0:00:03]}  Ke6 {[%clk 0:00:37]} 64. Re2 {[%clk 0:00:03]}  Rc3 {[%clk 0:00:35]} 65. Ra2 {[%clk 0:00:03]}  Kf6 {[%clk 0:00:35]} 66. Ra6+ {[%clk 0:00:03]}  Kg5 {[%clk 0:00:34]} 67. Ra5 {[%clk 0:00:04]}  e4 {[%clk 0:00:33]} 68. Ra8 {[%clk 0:00:04]}  e3 {[%clk 0:00:32]} 69. Rg8+ {[%clk 0:00:04]}  Kf6 {[%clk 0:00:32]} 70. fxe3 {[%clk 0:00:04]}  Rxe3 {[%clk 0:00:31]} 71. Rf8+ {[%clk 0:00:04]}  Kg6 {[%clk 0:00:28]} 72. Rg8+ {[%clk 0:00:05]}  Kf7 {[%clk 0:00:28]} 73. Ra8 {[%clk 0:00:05]}  Re2+ {[%clk 0:00:29]} 74. Kf1 {[%clk 0:00:05]}  Rb2 {[%clk 0:00:28]} 75. Ra6 {[%clk 0:00:05]}  Rd2 {[%clk 0:00:28]} 76. Rb6 {[%clk 0:00:05]}  Ke7 {[%clk 0:00:28]} 77. Kg1 {[%clk 0:00:04]}  Rd6 {[%clk 0:00:27]} 78. Rb5 {[%clk 0:00:04]}  Kf6 {[%clk 0:00:27]} 79. Kg2 {[%clk 0:00:04]}  Ke6 {[%clk 0:00:26]} 80. Rb2 {[%clk 0:00:04]}  Rd5 {[%clk 0:00:26]} 81. Re2+ {[%clk 0:00:04]}  Re5 {[%clk 0:00:26]} 82. Ra2 {[%clk 0:00:04]}  Kf6 {[%clk 0:00:24]} 83. Ra6+ {[%clk 0:00:04]}  Kg5 {[%clk 0:00:24]} 84. Ra2 {[%clk 0:00:05]}  Rb5 {[%clk 0:00:17]} 85. Rc2 {[%clk 0:00:05]}  Kf6 {[%clk 0:00:17]} 86. Ra2 {[%clk 0:00:04]}  Ke6 {[%clk 0:00:17]} 87. Re2+ {[%clk 0:00:04]}  Kd5 {[%clk 0:00:17]} 88. Rd2+ {[%clk 0:00:04]}  Kc4 {[%clk 0:00:17]} 89. Rf2 {[%clk 0:00:04]}  Kd3 {[%clk 0:00:16]} 90. Ra2 {[%clk 0:00:03]}  Kc3 {[%clk 0:00:16]} 91. Rf2 {[%clk 0:00:02]}  Rd5 {[%clk 0:00:15]} 92. Ra2 {[%clk 0:00:02]}  Rd2+ {[%clk 0:00:15]} 93. Rxd2 {[%clk 0:00:02]}  Kxd2 {[%clk 0:00:16]} 94. Kf2 {[%clk 0:00:03]}  Kd3 {[%clk 0:00:17]} 95. Kf1 {[%clk 0:00:03]}  Ke3 {[%clk 0:00:17]} 96. Kg2 {[%clk 0:00:04]}  Ke2 {[%clk 0:00:18]} 97. Kg1 {[%clk 0:00:04]}  Kf3 {[%clk 0:00:18]} 98. Kh2 {[%clk 0:00:05]}  Kf2 {[%clk 0:00:19]} 99. Kh1 {[%clk 0:00:05]}  Kxg3 {[%clk 0:00:19]} 100. Kg1 {[%clk 0:00:06]}  f4 {[%clk 0:00:20]} 0-1


[Site "https://www.chess.com"]

[Event "Titled Tuesday Blitz March 29 Late 2022"]
[White "Piliczewski, Bogusz"]
[Black "Ardila, Oscar Humberto"]
[WhiteFideId "1104144"]
[BlackFideId "4404742"]
[WhiteElo "1896"]
[BlackElo "1966"]
[Result "1-0"]
[Round "08"]
[TimeControl "180+1"]
[Date "2022.03.30"]
[WhiteClock "0:00:49"]
[BlackClock "0:00:00"]

1. d4 {[%clk 0:03:00]}  Nf6 {[%clk 0:02:58]} 2. Nf3 {[%clk 0:03:00]}  g6 {[%clk 0:02:51]} 3. Bf4 {[%clk 0:03:00]}  Bg7 {[%clk 0:02:48]} 4. e3 {[%clk 0:03:01]}  d6 {[%clk 0:02:46]} 5. h3 {[%clk 0:03:00]}  O-O {[%clk 0:02:46]} 6. Be2 {[%clk 0:03:01]}  Nbd7 {[%clk 0:02:41]} 7. O-O {[%clk 0:03:01]}  b6 {[%clk 0:02:41]} 8. c4 {[%clk 0:02:59]}  Bb7 {[%clk 0:02:42]} 9. Nc3 {[%clk 0:02:58]}  Ne4 {[%clk 0:02:37]} 10. Nxe4 {[%clk 0:02:48]}  Bxe4 {[%clk 0:02:33]} 11. Nd2 {[%clk 0:02:49]}  Bb7 {[%clk 0:02:30]} 12. Bf3 {[%clk 0:02:49]}  Bxf3 {[%clk 0:02:28]} 13. Nxf3 {[%clk 0:02:48]}  e5 {[%clk 0:02:27]} 14. Bh2 {[%clk 0:02:44]}  exd4 {[%clk 0:02:26]} 15. exd4 {[%clk 0:02:44]}  Qf6 {[%clk 0:02:22]} 16. Qd2 {[%clk 0:02:32]}  Rfe8 {[%clk 0:02:21]} 17. Rad1 {[%clk 0:02:29]}  Qe6 {[%clk 0:02:19]} 18. d5 {[%clk 0:02:10]}  Qf6 {[%clk 0:02:04]} 19. b3 {[%clk 0:02:07]}  Nc5 {[%clk 0:02:03]} 20. Rfe1 {[%clk 0:02:02]}  a5 {[%clk 0:02:02]} 21. Rxe8+ {[%clk 0:01:59]}  Rxe8 {[%clk 0:02:01]} 22. Re1 {[%clk 0:01:57]}  Rxe1+ {[%clk 0:01:50]} 23. Qxe1 {[%clk 0:01:53]}  Kf8 {[%clk 0:01:50]} 24. Bg3 {[%clk 0:01:45]}  Qb2 {[%clk 0:01:48]} 25. Qd2 {[%clk 0:01:43]}  Qa1+ {[%clk 0:01:41]} 26. Kh2 {[%clk 0:01:42]}  Ne4 {[%clk 0:01:37]} 27. Qe2 {[%clk 0:01:37]}  f5 {[%clk 0:01:30]} 28. Bf4 {[%clk 0:01:24]}  Bd4 {[%clk 0:01:14]} 29. Bh6+ {[%clk 0:01:19]}  Kf7 {[%clk 0:01:08]} 30. Ng5+ {[%clk 0:01:15]}  Nxg5 {[%clk 0:00:59]} 31. Bxg5 {[%clk 0:01:13]}  Be5+ {[%clk 0:00:56]} 32. f4 {[%clk 0:01:13]}  Bf6 {[%clk 0:00:48]} 33. Qe6+ {[%clk 0:01:13]}  Kg7 {[%clk 0:00:44]} 34. Qd7+ {[%clk 0:01:08]}  Kg8 {[%clk 0:00:43]} 35. Qc8+ {[%clk 0:01:05]}  Kg7 {[%clk 0:00:41]} 36. Qxc7+ {[%clk 0:01:05]}  Kg8 {[%clk 0:00:41]} 37. Qc8+ {[%clk 0:01:03]}  Kg7 {[%clk 0:00:41]} 38. Qd7+ {[%clk 0:01:03]}  Kg8 {[%clk 0:00:38]} 39. Qe6+ {[%clk 0:01:03]}  Kg7 {[%clk 0:00:29]} 40. Bxf6+ {[%clk 0:01:02]}  Qxf6 {[%clk 0:00:28]} 41. Qxf6+ {[%clk 0:01:02]}  Kxf6 {[%clk 0:00:28]} 42. g4 {[%clk 0:01:01]}  fxg4 {[%clk 0:00:18]} 43. hxg4 {[%clk 0:01:01]}  h5 {[%clk 0:00:16]} 44. Kg3 {[%clk 0:01:00]}  hxg4 {[%clk 0:00:11]} 45. Kxg4 {[%clk 0:01:00]}  Kf7 {[%clk 0:00:07]} 46. f5 {[%clk 0:00:55]}  Kf6 {[%clk 0:00:06]} 47. fxg6 {[%clk 0:00:54]}  Kxg6 {[%clk 0:00:02]} 48. Kf4 {[%clk 0:00:54]}  Kf6 {[%clk 0:00:03]} 49. a3 {[%clk 0:00:52]}  Kg6 {[%clk 0:00:01]} 50. Ke4 {[%clk 0:00:50]}  Kf6 {[%clk 0:00:00]} 51. Kd4 {[%clk 0:00:49]} 1-0


[Site "https://www.chess.com"]

[Event "Titled Tuesday Blitz March 29 Late 2022"]
[White "Pourkashiyan, Atousa"]
[Black "Adewumi, Tanitoluwa"]
[WhiteFideId "12502014"]
[BlackFideId "30966396"]
[WhiteElo "2247"]
[BlackElo "2571"]
[Result "0-1"]
[Round "08"]
[TimeControl "180+1"]
[Date "2022.03.30"]
[WhiteClock "0:00:11"]
[BlackClock "0:00:03"]

1. e4 {[%clk 0:03:00]}  c5 {[%clk 0:02:55]} 2. Nf3 {[%clk 0:03:00]}  d6 {[%clk 0:02:54]} 3. d4 {[%clk 0:03:00]}  cxd4 {[%clk 0:02:55]} 4. Nxd4 {[%clk 0:03:01]}  Nf6 {[%clk 0:02:55]} 5. Nc3 {[%clk 0:03:01]}  a6 {[%clk 0:02:55]} 6. Be2 {[%clk 0:03:01]}  e5 {[%clk 0:02:52]} 7. Nb3 {[%clk 0:03:01]}  Be7 {[%clk 0:02:49]} 8. O-O {[%clk 0:03:01]}  Nc6 {[%clk 0:02:46]} 9. Be3 {[%clk 0:02:56]}  O-O {[%clk 0:02:37]} 10. a3 {[%clk 0:02:50]}  Be6 {[%clk 0:02:33]} 11. Qd3 {[%clk 0:02:49]}  Rc8 {[%clk 0:02:24]} 12. Nd5 {[%clk 0:02:49]}  Bxd5 {[%clk 0:02:19]} 13. exd5 {[%clk 0:02:49]}  Nb8 {[%clk 0:02:18]} 14. c4 {[%clk 0:02:48]}  Nbd7 {[%clk 0:02:14]} 15. Nd2 {[%clk 0:02:48]}  Ne8 {[%clk 0:01:39]} 16. Bg4 {[%clk 0:02:47]}  g6 {[%clk 0:01:34]} 17. Bxd7 {[%clk 0:02:47]}  Qxd7 {[%clk 0:01:35]} 18. b4 {[%clk 0:02:47]}  f5 {[%clk 0:01:35]} 19. f3 {[%clk 0:02:45]}  Nf6 {[%clk 0:01:28]} 20. Rac1 {[%clk 0:02:44]}  b5 {[%clk 0:01:23]} 21. Rfd1 {[%clk 0:02:40]}  bxc4 {[%clk 0:01:09]} 22. Nxc4 {[%clk 0:02:37]}  Qb5 {[%clk 0:01:09]} 23. Na5 {[%clk 0:02:33]}  e4 {[%clk 0:00:43]} 24. Qxb5 {[%clk 0:02:25]}  axb5 {[%clk 0:00:44]} 25. Nc6 {[%clk 0:02:25]}  Bd8 {[%clk 0:00:41]} 26. Bf4 {[%clk 0:02:10]}  Bb6+ {[%clk 0:00:33]} 27. Kh1 {[%clk 0:02:09]}  Kf7 {[%clk 0:00:24]} 28. Bxd6 {[%clk 0:02:09]}  Rfe8 {[%clk 0:00:24]} 29. Bc5 {[%clk 0:02:04]}  Bxc5 {[%clk 0:00:16]} 30. Rxc5 {[%clk 0:02:01]}  e3 {[%clk 0:00:16]} 31. Ne5+ {[%clk 0:01:40]}  Kg7 {[%clk 0:00:06]} 32. Rxc8 {[%clk 0:01:03]}  Rxc8 {[%clk 0:00:07]} 33. d6 {[%clk 0:01:03]}  Rd8 {[%clk 0:00:02]} 34. Kg1 {[%clk 0:01:00]}  e2 {[%clk 0:00:01]} 35. Re1 {[%clk 0:01:00]}  Rxd6 {[%clk 0:00:02]} 36. Rxe2 {[%clk 0:01:01]}  Rd1+ {[%clk 0:00:02]} 37. Kf2 {[%clk 0:01:01]}  Nd5 {[%clk 0:00:03]} 38. g3 {[%clk 0:00:52]}  Nc3 {[%clk 0:00:03]} 39. Rc2 {[%clk 0:00:51]}  Nb1 {[%clk 0:00:04]} 40. Rc7+ {[%clk 0:00:44]}  Kf6 {[%clk 0:00:04]} 41. Nd7+ {[%clk 0:00:44]}  Ke6 {[%clk 0:00:03]} 42. Nc5+ {[%clk 0:00:44]}  Kf6 {[%clk 0:00:03]} 43. Ra7 {[%clk 0:00:39]}  Rd2+ {[%clk 0:00:03]} 44. Ke3 {[%clk 0:00:39]}  Rxh2 {[%clk 0:00:03]} 45. Ra6+ {[%clk 0:00:37]}  Kg5 {[%clk 0:00:03]} 46. Ne6+ {[%clk 0:00:35]}  Kh6 {[%clk 0:00:03]} 47. Nd4 {[%clk 0:00:34]}  Nc3 {[%clk 0:00:04]} 48. Nxf5+ {[%clk 0:00:29]}  Kg5 {[%clk 0:00:03]} 49. Nd4 {[%clk 0:00:27]}  Nd1+ {[%clk 0:00:02]} 50. Ke4 {[%clk 0:00:24]}  Rd2 {[%clk 0:00:03]} 51. Nxb5 {[%clk 0:00:20]}  Nf2+ {[%clk 0:00:02]} 52. Ke3 {[%clk 0:00:20]}  Ra2 {[%clk 0:00:02]} 53. Nd4 {[%clk 0:00:19]}  Nd1+ {[%clk 0:00:03]} 54. Kd3 {[%clk 0:00:18]}  Nb2+ {[%clk 0:00:03]} 55. Kc3 {[%clk 0:00:17]}  Nd1+ {[%clk 0:00:04]} 56. Kb3 {[%clk 0:00:18]}  Rb2+ {[%clk 0:00:03]} 57. Kc4 {[%clk 0:00:16]}  Ne3+ {[%clk 0:00:03]} 58. Kb5 {[%clk 0:00:17]}  Nf1 {[%clk 0:00:02]} 59. Rc6 {[%clk 0:00:15]}  Nxg3 {[%clk 0:00:02]} 60. Rc2 {[%clk 0:00:11]}  Rxc2 {[%clk 0:00:02]} 61. Nxc2 {[%clk 0:00:11]}  h5 {[%clk 0:00:03]} 0-1


[Site "https://www.chess.com"]

[Event "Titled Tuesday Blitz March 29 Late 2022"]
[White "Reprintsev, Alexander"]
[Black "Meduri, Aakaash"]
[WhiteFideId "14100541"]
[BlackFideId "2032252"]
[WhiteElo "2108"]
[BlackElo "2096"]
[Result "1-0"]
[Round "08"]
[TimeControl "180+1"]
[Date "2022.03.30"]
[WhiteClock "0:00:16"]
[BlackClock "0:00:01"]

1. e4 {[%clk 0:02:57]}  g6 {[%clk 0:02:57]} 2. d4 {[%clk 0:02:56]}  Bg7 {[%clk 0:02:58]} 3. Nc3 {[%clk 0:02:56]}  c5 {[%clk 0:02:58]} 4. dxc5 {[%clk 0:02:56]}  Qa5 {[%clk 0:02:59]} 5. Bd2 {[%clk 0:02:10]}  Qxc5 {[%clk 0:02:58]} 6. Nd5 {[%clk 0:02:05]}  Nf6 {[%clk 0:02:56]} 7. Bb4 {[%clk 0:01:57]}  Qc6 {[%clk 0:02:55]} 8. Bb5 {[%clk 0:01:52]}  Nxd5 {[%clk 0:02:54]} 9. Bxc6 {[%clk 0:01:51]}  Nxb4 {[%clk 0:02:54]} 10. Ba4 {[%clk 0:01:41]}  Bxb2 {[%clk 0:02:54]} 11. Ne2 {[%clk 0:01:36]}  Bxa1 {[%clk 0:02:53]} 12. Qxa1 {[%clk 0:01:36]}  O-O {[%clk 0:02:54]} 13. O-O {[%clk 0:01:35]}  N8c6 {[%clk 0:02:51]} 14. c3 {[%clk 0:01:31]}  Na6 {[%clk 0:02:51]} 15. Rd1 {[%clk 0:01:25]}  d6 {[%clk 0:02:51]} 16. Nd4 {[%clk 0:01:18]}  Bd7 {[%clk 0:02:44]} 17. Qb2 {[%clk 0:01:11]}  Nc5 {[%clk 0:02:40]} 18. Bxc6 {[%clk 0:01:08]}  bxc6 {[%clk 0:02:40]} 19. e5 {[%clk 0:01:02]}  Rfd8 {[%clk 0:01:43]} 20. exd6 {[%clk 0:01:02]}  exd6 {[%clk 0:01:42]} 21. Nb3 {[%clk 0:00:57]}  Nxb3 {[%clk 0:01:21]} 22. axb3 {[%clk 0:00:56]}  Be6 {[%clk 0:01:19]} 23. Qa3 {[%clk 0:00:56]}  c5 {[%clk 0:01:09]} 24. h3 {[%clk 0:00:54]}  Rd7 {[%clk 0:01:05]} 25. b4 {[%clk 0:00:51]}  cxb4 {[%clk 0:00:58]} 26. cxb4 {[%clk 0:00:50]}  Rb8 {[%clk 0:00:57]} 27. Rd4 {[%clk 0:00:44]}  Rb6 {[%clk 0:00:55]} 28. g4 {[%clk 0:00:43]}  h6 {[%clk 0:00:51]} 29. Qc3 {[%clk 0:00:42]}  d5 {[%clk 0:00:34]} 30. f4 {[%clk 0:00:37]}  Rdb7 {[%clk 0:00:23]} 31. f5 {[%clk 0:00:29]}  gxf5 {[%clk 0:00:17]} 32. gxf5 {[%clk 0:00:30]}  Bxf5 {[%clk 0:00:17]} 33. Rxd5 {[%clk 0:00:30]}  Be6 {[%clk 0:00:06]} 34. Rd8+ {[%clk 0:00:29]}  Kh7 {[%clk 0:00:07]} 35. Rh8+ {[%clk 0:00:29]}  Kg6 {[%clk 0:00:07]} 36. Rg8+ {[%clk 0:00:29]}  Kf5 {[%clk 0:00:03]} 37. Rg4 {[%clk 0:00:19]}  Rb5 {[%clk 0:00:01]} 38. Kh2 {[%clk 0:00:17]}  h5 {[%clk 0:00:01]} 39. Rd4 {[%clk 0:00:16]}  Kg6 {[%clk 0:00:01]} 40. Qg3+ {[%clk 0:00:16]}  Kh6 {[%clk 0:00:01]} 41. Qd6 {[%clk 0:00:16]} 1-0


[Site "https://www.chess.com"]

[Event "Titled Tuesday Blitz March 29 Late 2022"]
[White "Riazantsev, Alexander"]
[Black "Vovk, Orest"]
[WhiteFideId "4125029"]
[BlackFideId "14113490"]
[WhiteElo "2595"]
[BlackElo "2203"]
[Result "1-0"]
[Round "08"]
[TimeControl "180+1"]
[Date "2022.03.29"]
[WhiteClock "0:00:45"]
[BlackClock "0:00:09"]

1. d4 {[%clk 0:03:00]}  h6 {[%clk 0:02:59]} 2. Nf3 {[%clk 0:02:59]}  g5 {[%clk 0:02:59]} 3. a4 {[%clk 0:02:57]}  Bg7 {[%clk 0:02:58]} 4. a5 {[%clk 0:02:57]}  g4 {[%clk 0:02:53]} 5. Ng1 {[%clk 0:02:55]}  d5 {[%clk 0:02:46]} 6. c3 {[%clk 0:02:52]}  Nf6 {[%clk 0:02:37]} 7. Bf4 {[%clk 0:02:50]}  Nh5 {[%clk 0:02:32]} 8. Bd2 {[%clk 0:02:48]}  Nc6 {[%clk 0:02:27]} 9. e3 {[%clk 0:02:36]}  a6 {[%clk 0:02:25]} 10. h3 {[%clk 0:02:35]}  Nf6 {[%clk 0:02:24]} 11. hxg4 {[%clk 0:02:35]}  Bxg4 {[%clk 0:02:24]} 12. Qb3 {[%clk 0:02:31]}  Rb8 {[%clk 0:02:21]} 13. Nf3 {[%clk 0:02:29]}  Ne4 {[%clk 0:02:18]} 14. Be2 {[%clk 0:02:25]}  h5 {[%clk 0:02:12]} 15. c4 {[%clk 0:02:24]}  Nxd2 {[%clk 0:02:01]} 16. Nbxd2 {[%clk 0:02:24]}  dxc4 {[%clk 0:01:59]} 17. Bxc4 {[%clk 0:02:23]}  e6 {[%clk 0:01:59]} 18. Ne4 {[%clk 0:02:09]}  b5 {[%clk 0:01:46]} 19. axb6 {[%clk 0:02:07]}  Rxb6 {[%clk 0:01:46]} 20. Qc3 {[%clk 0:02:01]}  Bxf3 {[%clk 0:01:18]} 21. gxf3 {[%clk 0:02:01]}  Nxd4 {[%clk 0:01:18]} 22. exd4 {[%clk 0:01:50]}  Bxd4 {[%clk 0:01:18]} 23. Qd3 {[%clk 0:01:46]}  Rxb2 {[%clk 0:01:11]} 24. Rd1 {[%clk 0:01:22]}  c5 {[%clk 0:01:11]} 25. Qa3 {[%clk 0:01:13]}  Qb6 {[%clk 0:00:51]} 26. Kf1 {[%clk 0:01:10]}  f5 {[%clk 0:00:43]} 27. Nd2 {[%clk 0:01:10]}  Rg8 {[%clk 0:00:24]} 28. Qa4+ {[%clk 0:00:49]}  Ke7 {[%clk 0:00:21]} 29. Rxh5 {[%clk 0:00:49]}  Rxd2 {[%clk 0:00:18]} 30. Rxd2 {[%clk 0:00:48]}  Qb1+ {[%clk 0:00:15]} 31. Qd1 {[%clk 0:00:47]}  Qb4 {[%clk 0:00:14]} 32. Qe2 {[%clk 0:00:46]}  Qb1+ {[%clk 0:00:09]} 33. Rd1 {[%clk 0:00:46]}  Qb4 {[%clk 0:00:09]} 34. Qxe6+ {[%clk 0:00:45]} 1-0


[Site "https://www.chess.com"]

[Event "Titled Tuesday Blitz March 29 Late 2022"]
[White "Ronka, Erik"]
[Black "Melaugh, Shane"]
[WhiteFideId "505080"]
[BlackFideId "2509580"]
[WhiteElo "2264"]
[BlackElo "2014"]
[Result "1-0"]
[Round "08"]
[TimeControl "180+1"]
[Date "2022.03.30"]
[WhiteClock "0:00:07"]
[BlackClock "0:00:09"]

1. e4 {[%clk 0:03:00]}  e6 {[%clk 0:02:58]} 2. d4 {[%clk 0:02:56]}  d5 {[%clk 0:02:58]} 3. exd5 {[%clk 0:02:57]}  exd5 {[%clk 0:02:58]} 4. Nf3 {[%clk 0:02:58]}  Bd6 {[%clk 0:02:58]} 5. c4 {[%clk 0:02:57]}  c6 {[%clk 0:02:57]} 6. Nc3 {[%clk 0:02:56]}  Ne7 {[%clk 0:02:57]} 7. Bd3 {[%clk 0:02:55]}  Bg4 {[%clk 0:02:56]} 8. h3 {[%clk 0:02:54]}  Bh5 {[%clk 0:02:55]} 9. g4 {[%clk 0:02:48]}  Bg6 {[%clk 0:02:54]} 10. Ne5 {[%clk 0:02:36]}  dxc4 {[%clk 0:02:26]} 11. Bxc4 {[%clk 0:02:22]}  Bxe5 {[%clk 0:02:05]} 12. dxe5 {[%clk 0:02:23]}  Qa5 {[%clk 0:01:57]} 13. f4 {[%clk 0:02:05]}  Be4 {[%clk 0:01:55]} 14. Rf1 {[%clk 0:01:38]}  O-O {[%clk 0:01:16]} 15. Bd2 {[%clk 0:01:27]}  Qc5 {[%clk 0:01:00]} 16. Qe2 {[%clk 0:01:14]}  Bd5 {[%clk 0:00:57]} 17. Bd3 {[%clk 0:01:10]}  b5 {[%clk 0:00:45]} 18. Rc1 {[%clk 0:01:08]}  Qd4 {[%clk 0:00:31]} 19. a3 {[%clk 0:00:51]}  Bc4 {[%clk 0:00:20]} 20. Bxc4 {[%clk 0:00:50]}  bxc4 {[%clk 0:00:20]} 21. Be3 {[%clk 0:00:46]}  Qd3 {[%clk 0:00:19]} 22. Rd1 {[%clk 0:00:45]}  Qxe2+ {[%clk 0:00:13]} 23. Kxe2 {[%clk 0:00:46]}  Na6 {[%clk 0:00:13]} 24. Rd7 {[%clk 0:00:29]}  Nd5 {[%clk 0:00:13]} 25. Nxd5 {[%clk 0:00:27]}  cxd5 {[%clk 0:00:14]} 26. Rxd5 {[%clk 0:00:28]}  Rab8 {[%clk 0:00:15]} 27. Bd4 {[%clk 0:00:28]}  Rfd8 {[%clk 0:00:14]} 28. Rxd8+ {[%clk 0:00:28]}  Rxd8 {[%clk 0:00:15]} 29. Bc3 {[%clk 0:00:28]}  Nc5 {[%clk 0:00:15]} 30. f5 {[%clk 0:00:21]}  Rd5 {[%clk 0:00:09]} 31. Rf4 {[%clk 0:00:20]}  Nd3 {[%clk 0:00:04]} 32. Rxc4 {[%clk 0:00:18]}  h5 {[%clk 0:00:05]} 33. Rd4 {[%clk 0:00:17]}  Rxd4 {[%clk 0:00:04]} 34. Bxd4 {[%clk 0:00:18]}  Nf4+ {[%clk 0:00:05]} 35. Kf3 {[%clk 0:00:16]}  Nxh3 {[%clk 0:00:06]} 36. gxh5 {[%clk 0:00:10]}  Ng5+ {[%clk 0:00:06]} 37. Kf4 {[%clk 0:00:09]}  Nh7 {[%clk 0:00:04]} 38. Bxa7 {[%clk 0:00:08]}  Nf8 {[%clk 0:00:05]} 39. Bd4 {[%clk 0:00:07]}  Nd7 {[%clk 0:00:05]} 40. a4 {[%clk 0:00:07]}  Kf8 {[%clk 0:00:06]} 41. a5 {[%clk 0:00:08]}  Nb8 {[%clk 0:00:06]} 42. b4 {[%clk 0:00:08]}  Ke7 {[%clk 0:00:06]} 43. b5 {[%clk 0:00:08]}  Kd7 {[%clk 0:00:07]} 44. a6 {[%clk 0:00:09]}  Kc7 {[%clk 0:00:07]} 45. a7 {[%clk 0:00:09]}  Kb7 {[%clk 0:00:07]} 46. axb8=Q+ {[%clk 0:00:09]}  Kxb8 {[%clk 0:00:08]} 47. e6 {[%clk 0:00:10]}  fxe6 {[%clk 0:00:08]} 48. fxe6 {[%clk 0:00:11]}  Kc7 {[%clk 0:00:08]} 49. Bxg7 {[%clk 0:00:12]}  Kd6 {[%clk 0:00:08]} 50. h6 {[%clk 0:00:12]}  Kxe6 {[%clk 0:00:08]} 51. h7 {[%clk 0:00:13]}  Kf7 {[%clk 0:00:09]} 52. h8=Q {[%clk 0:00:13]}  Kg6 {[%clk 0:00:10]} 53. Qh6+ {[%clk 0:00:13]}  Kf7 {[%clk 0:00:10]} 54. Qf6+ {[%clk 0:00:13]}  Ke8 {[%clk 0:00:11]} 55. b6 {[%clk 0:00:11]}  Kd7 {[%clk 0:00:12]} 56. b7 {[%clk 0:00:11]}  Kc7 {[%clk 0:00:13]} 57. Qe5+ {[%clk 0:00:10]}  Kc6 {[%clk 0:00:11]} 58. Ke4 {[%clk 0:00:10]}  Kd7 {[%clk 0:00:11]} 59. Qd5+ {[%clk 0:00:09]}  Ke7 {[%clk 0:00:11]} 60. Be5 {[%clk 0:00:07]}  Kf8 {[%clk 0:00:09]} 61. b8=Q+ {[%clk 0:00:07]}  Ke7 {[%clk 0:00:10]} 62. Qbb7+ {[%clk 0:00:07]}  Ke8 {[%clk 0:00:09]} 63. Qdf7+ {[%clk 0:00:07]}  Kd8 {[%clk 0:00:09]} 64. Qg8# {[%clk 0:00:07]} 1-0


[Site "https://www.chess.com"]